[Event "27th Kavala Open 2018"]
[Site "Kavala"]
[Date "2018.08.07"]
[Round "4"]
[White "Beliotis, Georgios"]
[Black "Kanakaris, Georgios"]
[Result "1/2-1/2"]
[ECO "B52"]
[WhiteElo "2117"]
[BlackElo "2398"]
[Annotator "NA"]
[PlyCount "34"]
[EventDate "2018.08.06"]
[EventType "swiss"]
[EventCountry "GRE"]
[SourceTitle "playchess.com"]
[Source "ChessBase"]
[SourceQuality "1"]
[TimeControl "40/5400+30:900+30"]

1. e4 {[%emt 0:00:03]} c5 {[%emt 0:00:06]} 2. Nf3 {[%emt 0:00:05]} d6 {[%emt 0:00:05]} 3. Bb5+ {[%emt 0:00:06]} Bd7 {[%emt 0:00:07]} 4. Bxd7+ {[%emt 0:00:06]} Qxd7 {[%emt 0:00:05]} 5. c4 {[%emt 0:00:10]} Nf6 {[%emt 0:01:07]} 6. Nc3 {[%emt 0:00:08]} g6 {[%emt 0:00:24]} 7. d4 {[%emt 0:00:10]} cxd4 {[%emt 0:00:41]} 8. Nxd4 {[%emt 0:00:07]} Bg7 {[%emt 0:00:07]} 9. b3 {[%emt 0:00:57]} Nc6 {[%emt 0:06:07]} 10. Bb2 {[%emt 0:00:08]} O-O {[%emt 0:03:57]} 11. O-O {[%emt 0:00:09]} e6 {[%emt 0:01:46]} 12. Re1 {[%emt 0:03:18]} Rfd8 {[%emt 0:08:42]} 13. Nxc6 {[%emt 0:16:48]} Qxc6 {[%emt 0:00:31]} 14. Qe2 {[%emt 0:06:08]} a6 {[%emt 0:03:59]} 15. Rac1 {[%emt 0:05:48]} Qe8 {[%emt 0:03:39]} 16. Red1 {[%emt 0:04:00]} Rab8 {[%emt 0:17:54]} 17. Qf3 {[%emt 0:06:22]} Nd7 {[%emt 0:05:54]} 1/2-1/2

[Event "27th Kavala Open 2018"]
[Site "Kavala"]
[Date "2018.08.08"]
[Round "5"]
[White "Petrov, Martin"]
[Black "Hasangatin, Ramil"]
[Result "1-0"]
[ECO "B32"]
[WhiteElo "2456"]
[BlackElo "2491"]
[Annotator "RC"]
[PlyCount "87"]
[EventDate "2018.08.06"]
[EventType "swiss"]
[EventCountry "GRE"]
[SourceTitle "playchess.com"]
[Source "ChessBase"]
[SourceQuality "1"]
[TimeControl "40/5400+30:900+30"]

1. e4 {[%emt 0:00:38]} c5 {[%emt 0:00:03]} 2. Nf3 {[%emt 0:00:10]} Nc6 {[%emt 0:00:03]} 3. d4 {[%emt 0:00:11]} cxd4 {[%emt 0:00:03]} 4. Nxd4 {[%emt 0:00:07]} e5 {[%emt 0:00:15]} 5. Nb5 {[%emt 0:00:09]} a6 {[%emt 0:00:03]} 6. Nd6+ {[%emt 0:00:10]} Bxd6 {[%emt 0:00:04]} 7. Qxd6 {[%emt 0:00:08]} Qe7 {[%emt 0:00:02]} 8. Qd1 {[%emt 0:00:23]} Nf6 {[%emt 0:00:10]} 9. Nc3 {[%emt 0:00:08]} d6 {[%emt 0:00:04]} 10. Bg5 {[%emt 0:00:09]} Be6 {[%emt 0:00:04]} 11. Nd5 {[%emt 0:00:22]} Bxd5 {[%emt 0:00:04]} 12. exd5 {[%emt 0:00:27]} Nb8 {[%emt 0:00:01]} 13. Bd3 {[%emt 0:01:52]} Nbd7 {[%emt 0:02:05]} 14. c4 {[%emt 0:01:50]} h6 {[%emt 0:08:41]} 15. Be3 {[%emt 0:00:10]} O-O {[%emt 0:01:21]} 16. O-O {[%emt 0:00:38]} e4 {[%emt 0:04:07]} 17. Be2 {[%emt 0:02:09]} Ne8 {[%emt 0:00:49]} 18. Bd4 {[%emt 0:08:08]} f5 {[%emt 0:00:46]} 19. f4 {[%emt 0:03:18]} exf3 {[%emt 0:00:08]} 20. Bxf3 {[%emt 0:01:44]} Ne5 {[%emt 0:02:12]} 21. Re1 {[%emt 0:01:50]} Qc7 {[%emt 0:20:16]} 22. Rc1 {[%emt 0:01:28]} Nf6 {[%emt 0:00:15]} 23. c5 {[%emt 0:11:24]} Nxf3+ {[%emt 0:07:03]} 24. Qxf3 {[%emt 0:00:54]} dxc5 {[%emt 0:01:27]} 25. Qxf5 {[%emt 0:17:02]} b6 {[%emt 0:11:45]} 26. Re6 {[%emt 0:03:01]} Qd8 {[%emt 0:01:49]} 27. Bxf6 {[%emt 0:00:53]} Rxf6 {[%emt 0:00:25]} 28. Qe5 {[%emt 0:02:57]} Rxe6 {[%emt 0:05:07]} 29. Qxe6+ {[%emt 0:00:43]} Kh8 {[%emt 0:00:26]} 30. Rf1 {[%emt 0:03:24]} Qh4 {[%emt 0:07:17]} 31. h3 {[%emt 0:11:07]} Qd4+ {[%emt 0:03:24]} 32. Kh1 {[%emt 0:00:48]} c4 {[%emt 0:11:44]} 33. d6 {[%emt 0:01:38]} Rd8 {[%emt 0:00:24]} 34. Qe7 {[%emt 0:00:30]} Rg8 {[%emt 0:07:18]} 35. d7 {[%emt 0:00:07]} Kh7 {[%emt 0:02:49]} 36. Re1 {[%emt 0:01:46]} Qd2 {[%emt 0:01:19]} 37. Qe4+ {[%emt 0:01:04]} Kh8 {[%emt 0:00:07]} 38. Qe8 {[%emt 0:00:08]} b5 {[%emt 0:04:20]} 39. h4 {[%emt 0:01:48]} b4 {[%emt 0:00:38]} 40. Qxg8+ {[%emt 0:00:00]} Kxg8 {[%emt 0:00:00]} 41. Re8+ {[%emt 0:00:31]} Kh7 {[%emt 0:04:21]} 42. d8=Q {[%emt 0:01:34]} Qc1+ {[%emt 0:00:04]} 43. Kh2 {[%emt 0:00:05]} Qf4+ {[%emt 0:00:16]} 44. Kh3 {[%emt 0:00:09]} 1-0

[Event "27th Kavala Open 2018"]
[Site "Kavala"]
[Date "2018.08.08"]
[Round "5"]
[White "Skaperdas, Kostantinos"]
[Black "Pezelj, Novak"]
[Result "1-0"]
[ECO "C60"]
[WhiteElo "2213"]
[BlackElo "2483"]
[Annotator "RC"]
[PlyCount "85"]
[EventDate "2018.08.06"]
[EventType "swiss"]
[EventCountry "GRE"]
[SourceTitle "playchess.com"]
[Source "ChessBase"]
[SourceQuality "1"]
[TimeControl "40/5400+30:900+30"]

1. e4 {[%emt 0:08:16]} Nc6 {[%emt 0:00:15]} 2. Nf3 {[%emt 0:00:55]} e5 {[%emt 0:01:08]} 3. Bb5 {[%emt 0:00:19]} Nge7 {[%emt 0:01:19]} 4. O-O {[%emt 0:03:28]} g6 {[%emt 0:05:59]} 5. c3 {[%emt 0:00:16]} Bg7 {[%emt 0:05:51]} 6. d4 {[%emt 0:02:42]} a6 {[%emt 0:00:48]} 7. Ba4 {[%emt 0:05:33]} b5 {[%emt 0:03:08]} 8. Bc2 {[%emt 0:03:02]} d6 {[%emt 0:05:38]} 9. a4 {[%emt 0:12:55]} Bg4 {[%emt 0:03:12]} 10. axb5 {[%emt 0:03:48]} axb5 {[%emt 0:00:28]} 11. Rxa8 {[%emt 0:00:14]} Qxa8 {[%emt 0:00:10]} 12. d5 {[%emt 0:00:48]} Na7 {[%emt 0:03:09]} 13. Na3 {[%emt 0:07:08]} O-O {[%emt 0:03:15]} 14. h3 {[%emt 0:13:24]} Bd7 {[%emt 0:00:39]} 15. Bg5 {[%emt 0:00:59]} Nec8 {[%emt 0:09:16]} 16. Qd2 {[%emt 0:03:20]} Qb7 {[%emt 0:04:53]} 17. Rd1 {[%emt 0:03:50]} Nb6 {[%emt 0:03:49]} 18. b4 {[%emt 0:02:52]} Ra8 {[%emt 0:01:51]} 19. Bd3 {[%emt 0:04:04]} c6 {[%emt 0:13:56]} 20. dxc6 {[%emt 0:06:56]} Bxc6 {[%emt 0:00:06]} 21. Qe2 {[%emt 0:02:19]} d5 {[%emt 0:07:50]} 22. Nxe5 {[%emt 0:06:49]} dxe4 {[%emt 0:15:48]} 23. Nxc6 {[%emt 0:00:01]} exd3 {[%emt 0:00:09]} 24. Ne7+ {[%emt 0:00:04]} Kf8 {[%emt 0:01:16]} 25. Qxd3 {[%emt 0:02:06]} f6 {[%emt 0:01:10]} 26. Be3 {[%emt 0:00:16]} Kxe7 {[%emt 0:06:04]} 27. Qd6+ {[%emt 0:00:06]} Kf7 {[%emt 0:00:07]} 28. Qxb6 {[%emt 0:01:04]} Qxb6 {[%emt 0:00:22]} 29. Bxb6 {[%emt 0:00:01]} Nc6 {[%emt 0:01:42]} 30. Nxb5 {[%emt 0:00:37]} Rb8 {[%emt 0:00:19]} 31. Nd6+ {[%emt 0:01:05]} Ke6 {[%emt 0:00:04]} 32. Bc7 {[%emt 0:02:31]} Rg8 {[%emt 0:00:53]} 33. b5 {[%emt 0:01:17]} Ne5 {[%emt 0:00:05]} 34. b6 {[%emt 0:00:18]} Kd7 {[%emt 0:00:05]} 35. Nc4+ {[%emt 0:01:53]} Kc8 {[%emt 0:00:19]} 36. Ra1 {[%emt 0:01:19]} Kb7 {[%emt 0:00:10]} 37. Na5+ {[%emt 0:00:43]} Kc8 {[%emt 0:00:33]} 38. Nc4 {[%emt 0:00:53]} Kb7 {[%emt 0:00:06]} 39. Na5+ {[%emt 0:00:01]} Kc8 {[%emt 0:00:04]} 40. Bxe5 {[%emt 0:00:00]} fxe5 {[%emt 0:00:00]} 41. Rb1 {[%emt 0:03:04]} e4 {[%emt 0:00:45]} 42. b7+ {[%emt 0:00:44]} Kc7 {[%emt 0:00:04]} 43. Nc6 {[%emt 0:00:10]} 1-0

[Event "27th Kavala Open 2018"]
[Site "Kavala"]
[Date "2018.08.08"]
[Round "6"]
[White "Theodorou, Nikolas"]
[Black "Dimitrov, Radoslav"]
[Result "1/2-1/2"]
[ECO "E19"]
[WhiteElo "2532"]
[BlackElo "2518"]
[Annotator "ChessBase"]
[PlyCount "136"]
[EventDate "2018.08.06"]
[EventType "swiss"]
[EventCountry "GRE"]
[SourceTitle "playchess.com"]
[Source "ChessBase"]
[SourceQuality "1"]
[TimeControl "40/5400+30:900+30"]

1. Nf3 {[%emt 0:03:30]} Nf6 {[%emt 0:00:07]} 2. c4 {[%emt 0:00:07]} e6 {[%emt 0:00:06]} 3. g3 {[%emt 0:00:36]} a6 {[%emt 0:00:16]} 4. Bg2 {[%emt 0:01:02]} b5 {[%emt 0:00:15]} 5. b3 {[%emt 0:00:45]} Bb7 {[%emt 0:00:35]} 6. O-O {[%emt 0:00:22]} c5 {[%emt 0:01:52]} 7. Nc3 {[%emt 0:03:21]} Qb6 {[%emt 0:19:27]} 8. Re1 {[%emt 0:10:01]} Nc6 {[%emt 0:16:08]} 9. e4 {[%emt 0:05:39]} d6 {[%emt 0:00:21]} 10. Nd5 {[%emt 0:00:22]} exd5 {[%emt 0:03:40]} 11. exd5+ {[%emt 0:00:03]} Ne5 {[%emt 0:10:31]} 12. d4 {[%emt 0:03:32]} cxd4 {[%emt 0:00:03]} 13. Bb2 {[%emt 0:09:52]} Be7 {[%emt 0:08:50]} 14. Bxd4 {[%emt 0:00:43]} Nxf3+ {[%emt 0:05:57]} 15. Bxf3 {[%emt 0:00:02]} Qd8 {[%emt 0:00:13]} 16. Bxf6 {[%emt 0:26:43]} gxf6 {[%emt 0:00:02]} 17. Bh5 {[%emt 0:16:24]} f5 {[%emt 0:02:26]} 18. Qd3 {[%emt 0:06:24]} O-O {[%emt 0:00:19]} 19. Qxf5 {[%emt 0:00:18]} Bc8 {[%emt 0:01:09]} 20. Qf3 {[%emt 0:00:20]} Bf6 {[%emt 0:01:03]} 21. Rad1 {[%emt 0:01:39]} bxc4 {[%emt 0:02:38]} 22. bxc4 {[%emt 0:00:05]} Bg7 {[%emt 0:04:35]} 23. Re4 {[%emt 0:00:27]} f5 {[%emt 0:04:51]} 24. Re2 {[%emt 0:00:08]} f4 {[%emt 0:00:19]} 25. g4 {[%emt 0:01:15]} Bd7 {[%emt 0:01:21]} 26. c5 {[%emt 0:04:25]} Bb5 {[%emt 0:06:10]} 27. Re6 {[%emt 0:00:46]} dxc5 {[%emt 0:00:36]} 28. d6 {[%emt 0:00:01]} Kh8 {[%emt 0:04:08]} 29. Re7 {[%emt 0:02:13]} Bf6 {[%emt 0:00:01]} 30. Rc7 {[%emt 0:01:25]} Rc8 {[%emt 0:00:26]} 31. g5 {[%emt 0:01:55]} Bd4 {[%emt 0:02:23]} 32. Re7 {[%emt 0:00:34]} Rf5 {[%emt 0:02:03]} 33. Qg4 {[%emt 0:00:42]} Qf8 {[%emt 0:00:43]} 34. d7 {[%emt 0:00:07]} Rd8 {[%emt 0:01:04]} 35. Rde1 {[%emt 0:00:01]} Bxd7 {[%emt 0:01:59]} 36. Rxd7 {[%emt 0:01:15]} Rxd7 {[%emt 0:00:19]} 37. Re8 {[%emt 0:00:01]} Qxe8 {[%emt 0:00:13]} 38. Bxe8 {[%emt 0:00:02]} Rxg5 {[%emt 0:00:29]} 39. Bxd7 {[%emt 0:01:14]} Rxg4+ {[%emt 0:00:03]} 40. Bxg4 {[%emt 0:00:00]} Kg7 {[%emt 0:00:00]} 41. Kf1 {[%emt 0:07:18]} c4 {[%emt 0:01:24]} 42. Ke2 {[%emt 0:00:36]} Kf6 {[%emt 0:00:13]} 43. Bc8 {[%emt 0:04:23]} a5 {[%emt 0:00:06]} 44. Ba6 {[%emt 0:00:09]} c3 {[%emt 0:00:05]} 45. Kd3 {[%emt 0:00:27]} Bxf2 {[%emt 0:14:15]} 46. Kxc3 {[%emt 0:00:02]} Bg1 {[%emt 0:00:08]} 47. h3 {[%emt 0:00:13]} Kg5 {[%emt 0:00:01]} 48. Kd3 {[%emt 0:05:35]} Kh4 {[%emt 0:00:14]} 49. Ke2 {[%emt 0:01:47]} Kxh3 {[%emt 0:00:44]} 50. Kf3 {[%emt 0:00:01]} Be3 {[%emt 0:01:12]} 51. a4 {[%emt 0:00:24]} Kh4 {[%emt 0:00:35]} 52. Bc8 {[%emt 0:00:05]} Kg5 {[%emt 0:00:06]} 53. Bh3 {[%emt 0:00:45]} Kf6 {[%emt 0:00:08]} 54. Bc8 {[%emt 0:00:21]} Ke5 {[%emt 0:00:07]} 55. Bh3 {[%emt 0:00:17]} Bc5 {[%emt 0:00:06]} 56. Bg4 {[%emt 0:00:15]} Bd6 {[%emt 0:00:29]} 57. Bh3 {[%emt 0:00:10]} h5 {[%emt 0:00:11]} 58. Bc8 {[%emt 0:00:17]} Kd4 {[%emt 0:00:08]} 59. Bh3 {[%emt 0:00:49]} Ke5 {[%emt 0:01:02]} 60. Bc8 {[%emt 0:00:07]} Be7 {[%emt 0:00:06]} 61. Bh3 {[%emt 0:00:22]} Bg5 {[%emt 0:00:08]} 62. Bc8 {[%emt 0:00:52]} Kd4 {[%emt 0:00:13]} 63. Bh3 {[%emt 0:00:08]} Kc5 {[%emt 0:00:05]} 64. Bc8 {[%emt 0:00:54]} h4 {[%emt 0:01:00]} 65. Kg4 {[%emt 0:00:42]} Kd4 {[%emt 0:02:58]} 66. Kxg5 {[%emt 0:00:22]} f3 {[%emt 0:00:04]} 67. Kxh4 {[%emt 0:00:33]} f2 {[%emt 0:00:09]} 68. Ba6 {[%emt 0:00:37]} Kc5 {[%emt 0:00:11]} 1/2-1/2

[Event "27th Kavala Open 2018"]
[Site "Kavala"]
[Date "2018.08.08"]
[Round "6"]
[White "Mastrovasilis, Athanasios"]
[Black "Grigoriadis, Alexandros"]
[Result "0-1"]
[ECO "A49"]
[WhiteElo "2518"]
[BlackElo "2211"]
[Annotator "ChessBase"]
[PlyCount "80"]
[EventDate "2018.08.06"]
[EventType "swiss"]
[EventCountry "GRE"]
[SourceTitle "playchess.com"]
[Source "ChessBase"]
[SourceQuality "1"]
[TimeControl "40/5400+30:900+30"]

1. d4 {[%emt 0:03:48]} Nf6 {[%emt 0:03:34]} 2. Nf3 {[%emt 0:00:56]} g6 {[%emt 0:00:21]} 3. g3 {[%emt 0:02:03]} Bg7 {[%emt 0:00:52]} 4. Bg2 {[%emt 0:00:06]} c5 {[%emt 0:00:23]} 5. c3 {[%emt 0:02:26]} cxd4 {[%emt 0:01:19]} 6. cxd4 {[%emt 0:00:09]} O-O {[%emt 0:00:27]} 7. Nc3 {[%emt 0:00:40]} d5 {[%emt 0:00:08]} 8. Ne5 {[%emt 0:01:33]} b6 {[%emt 0:07:44]} 9. Bf4 {[%emt 0:14:59]} Bb7 {[%emt 0:03:25]} 10. Qa4 {[%emt 0:09:49]} e6 {[%emt 0:02:56]} 11. Rc1 {[%emt 0:01:31]} Nh5 {[%emt 0:10:35]} 12. Bd2 {[%emt 0:14:15]} a6 {[%emt 0:04:21]} 13. O-O {[%emt 0:05:25]} Nf6 {[%emt 0:11:21]} 14. e3 {[%emt 0:04:54]} Nfd7 {[%emt 0:01:11]} 15. Nxd7 {[%emt 0:00:39]} Nxd7 {[%emt 0:02:00]} 16. Ne2 {[%emt 0:08:56]} Re8 {[%emt 0:10:02]} 17. Rc2 {[%emt 0:03:30]} b5 {[%emt 0:06:56]} 18. Qa3 {[%emt 0:08:53]} Bf8 {[%emt 0:11:39]} 19. Bb4 {[%emt 0:00:24]} Bxb4 {[%emt 0:00:42]} 20. Qxb4 {[%emt 0:00:02]} Qb6 {[%emt 0:01:11]} 21. Rfc1 {[%emt 0:07:05]} a5 {[%emt 0:02:13]} 22. Qa3 {[%emt 0:00:12]} b4 {[%emt 0:04:30]} 23. Qa4 {[%emt 0:00:05]} Nf6 {[%emt 0:00:21]} 24. Nf4 {[%emt 0:00:45]} Rec8 {[%emt 0:01:22]} 25. Rc5 {[%emt 0:04:03]} Kf8 {[%emt 0:02:26]} 26. Nd3 {[%emt 0:00:26]} Rxc5 {[%emt 0:04:41]} 27. Rxc5 {[%emt 0:00:14]} Kg7 {[%emt 0:00:59]} 28. h3 {[%emt 0:00:51]} Ra6 {[%emt 0:03:28]} 29. Ne5 {[%emt 0:00:39]} Ra8 {[%emt 0:00:06]} 30. Qc2 {[%emt 0:01:25]} Ne8 {[%emt 0:00:37]} 31. Bf1 {[%emt 0:00:54]} Ra7 {[%emt 0:01:20]} 32. Qa4 {[%emt 0:00:37]} Nd6 {[%emt 0:00:32]} 33. Qd7 {[%emt 0:01:30]} Ba8 {[%emt 0:00:15]} 34. Qa4 {[%emt 0:00:31]} Ne4 {[%emt 0:00:32]} 35. Rc8 {[%emt 0:00:30]} Bb7 {[%emt 0:00:17]} 36. Rb8 {[%emt 0:00:45]} Nf6 {[%emt 0:01:32]} 37. Qb5 {[%emt 0:02:26]} Qc7 {[%emt 0:00:21]} 38. Re8 {[%emt 0:00:29]} Ba6 {[%emt 0:01:01]} 39. Qb8 {[%emt 0:00:28]} Nxe8 {[%emt 0:00:19]} 40. Qxe8 {[%emt 0:00:00]} Qc1 {[%emt 0:00:00]} 0-1

[Event "27th Kavala Open 2018"]
[Site "Kavala"]
[Date "2018.08.08"]
[Round "6"]
[White "Mu, Ke"]
[Black "Cukanovic, Petar"]
[Result "1/2-1/2"]
[ECO "E11"]
[WhiteElo "2446"]
[BlackElo "2189"]
[Annotator "NA"]
[PlyCount "138"]
[EventDate "2018.08.06"]
[EventType "swiss"]
[EventCountry "GRE"]
[SourceTitle "playchess.com"]
[Source "ChessBase"]
[SourceQuality "1"]
[TimeControl "40/5400+30:900+30"]

1. d4 {[%emt 0:01:40]} Nf6 {[%emt 0:00:14]} 2. c4 {[%emt 0:00:16]} e6 {[%emt 0:00:27]} 3. Nf3 {[%emt 0:00:08]} Bb4+ {[%emt 0:00:17]} 4. Nbd2 {[%emt 0:00:13]} b6 {[%emt 0:00:28]} 5. a3 {[%emt 0:00:19]} Bxd2+ {[%emt 0:00:36]} 6. Qxd2 {[%emt 0:00:06]} Bb7 {[%emt 0:00:48]} 7. e3 {[%emt 0:00:06]} d6 {[%emt 0:03:15]} 8. Be2 {[%emt 0:00:10]} a5 {[%emt 0:01:27]} 9. b3 {[%emt 0:00:06]} Nbd7 {[%emt 0:00:25]} 10. O-O {[%emt 0:00:08]} Qe7 {[%emt 0:00:48]} 11. Bb2 {[%emt 0:00:12]} O-O {[%emt 0:00:58]} 12. Qc2 {[%emt 0:00:18]} e5 {[%emt 0:03:05]} 13. dxe5 {[%emt 0:04:27]} dxe5 {[%emt 0:00:23]} 14. Rfd1 {[%emt 0:00:18]} Rad8 {[%emt 0:07:45]} 15. b4 {[%emt 0:08:37]} Rfe8 {[%emt 0:05:05]} 16. h3 {[%emt 0:16:37]} h6 {[%emt 0:13:23]} 17. Qb3 {[%emt 0:17:39]} Bc6 {[%emt 0:08:26]} 18. c5 {[%emt 0:06:10]} a4 {[%emt 0:10:31]} 19. Qc2 {[%emt 0:01:51]} b5 {[%emt 0:01:07]} 20. Qc3 {[%emt 0:02:33]} Ne4 {[%emt 0:06:26]} 21. Qe1 {[%emt 0:00:07]} Ng5 {[%emt 0:06:30]} 22. Nxg5 {[%emt 0:00:06]} Qxg5 {[%emt 0:00:14]} 23. Qf1 {[%emt 0:00:03]} Rb8 {[%emt 0:01:55]} 24. f4 {[%emt 0:06:53]} Qe7 {[%emt 0:09:40]} 25. Bf3 {[%emt 0:04:17]} e4 {[%emt 0:05:20]} 26. Be2 {[%emt 0:00:18]} Nf6 {[%emt 0:01:45]} 27. Rd2 {[%emt 0:01:49]} Red8 {[%emt 0:01:37]} 28. Rxd8+ {[%emt 0:02:27]} Qxd8 {[%emt 0:00:02]} 29. Rd1 {[%emt 0:00:06]} Qe7 {[%emt 0:00:25]} 30. Rd4 {[%emt 0:03:40]} Nd5 {[%emt 0:03:02]} 31. Qc1 {[%emt 0:01:23]} Qe6 {[%emt 0:00:33]} 32. Qd2 {[%emt 0:00:57]} Kh8 {[%emt 0:02:19]} 33. Kf2 {[%emt 0:00:51]} Kg8 {[%emt 0:01:31]} 34. Ba1 {[%emt 0:00:47]} Kh8 {[%emt 0:00:42]} 35. Bd1 {[%emt 0:01:36]} Re8 {[%emt 0:00:52]} 36. Bg4 {[%emt 0:01:28]} f5 {[%emt 0:01:00]} 37. Bh5 {[%emt 0:00:32]} Re7 {[%emt 0:00:13]} 38. g3 {[%emt 0:00:38]} Kh7 {[%emt 0:00:18]} 39. Be2 {[%emt 0:00:07]} Rd7 {[%emt 0:02:26]} 40. g4 {[%emt 0:00:00]} Qe7 {[%emt 0:00:00]} 41. Kg3 {[%emt 0:09:32]} Qf7 {[%emt 0:06:48]} 42. gxf5 {[%emt 0:06:33]} Ne7 {[%emt 0:02:56]} 43. Rxd7 {[%emt 0:00:28]} Nxf5+ {[%emt 0:00:59]} 44. Kf2 {[%emt 0:00:23]} Bxd7 {[%emt 0:00:26]} 45. Ke1 {[%emt 0:04:09]} c6 {[%emt 0:01:48]} 46. Qc3 {[%emt 0:04:48]} Qe7 {[%emt 0:04:01]} 47. Kd1 {[%emt 0:01:00]} Be6 {[%emt 0:00:38]} 48. Kc1 {[%emt 0:00:26]} Ng3 {[%emt 0:00:57]} 49. Bd1 {[%emt 0:01:15]} Bb3 {[%emt 0:00:42]} 50. Qe1 {[%emt 0:01:20]} Bxd1 {[%emt 0:00:49]} 51. Qxg3 {[%emt 0:00:05]} Qd7 {[%emt 0:00:51]} 52. Bd4 {[%emt 0:01:25]} Bh5 {[%emt 0:00:32]} 53. f5 {[%emt 0:02:25]} Qf7 {[%emt 0:01:11]} 54. Bc3 {[%emt 0:00:06]} Qd7 {[%emt 0:00:56]} 55. Qg1 {[%emt 0:00:07]} Qf7 {[%emt 0:00:55]} 56. Qg2 {[%emt 0:00:43]} Bf3 {[%emt 0:00:17]} 57. Qg3 {[%emt 0:00:05]} Be2 {[%emt 0:01:34]} 58. Qe5 {[%emt 0:02:13]} Qf6 {[%emt 0:00:21]} 59. Qxf6 {[%emt 0:04:04]} gxf6 {[%emt 0:00:04]} 60. Bxf6 {[%emt 0:00:07]} Bf1 {[%emt 0:00:12]} 61. h4 {[%emt 0:00:18]} Bh3 {[%emt 0:00:15]} 62. Kd2 {[%emt 0:01:15]} Bxf5 {[%emt 0:00:26]} 63. Kc3 {[%emt 0:00:06]} Kg6 {[%emt 0:00:38]} 64. Bd8 {[%emt 0:00:18]} Be6 {[%emt 0:00:13]} 65. Kd4 {[%emt 0:00:05]} Kf5 {[%emt 0:00:09]} 66. Be7 {[%emt 0:00:18]} h5 {[%emt 0:00:14]} 67. Bd8 {[%emt 0:00:06]} Bf7 {[%emt 0:00:28]} 68. Be7 {[%emt 0:00:08]} Be6 {[%emt 0:00:06]} 69. Bd8 {[%emt 0:00:06]} Bf7 1/2-1/2

[Event "27th Kavala Open 2018"]
[Site "Kavala"]
[Date "2018.08.08"]
[Round "6"]
[White "Ni, Shiqun"]
[Black "Kanakaris, Georgios"]
[Result "1/2-1/2"]
[ECO "B92"]
[WhiteElo "2436"]
[BlackElo "2398"]
[Annotator "NA"]
[PlyCount "76"]
[EventDate "2018.08.06"]
[EventType "swiss"]
[EventCountry "GRE"]
[SourceTitle "playchess.com"]
[Source "ChessBase"]
[SourceQuality "1"]
[TimeControl "40/5400+30:900+30"]

1. e4 {[%emt 0:01:31]} c5 {[%emt 0:00:09]} 2. Nf3 {[%emt 0:00:11]} d6 {[%emt 0:00:06]} 3. d4 {[%emt 0:00:10]} cxd4 {[%emt 0:00:09]} 4. Nxd4 {[%emt 0:00:02]} Nf6 {[%emt 0:00:08]} 5. Nc3 {[%emt 0:00:04]} a6 {[%emt 0:00:05]} 6. Be2 {[%emt 0:00:20]} e5 {[%emt 0:00:14]} 7. Nf3 {[%emt 0:03:57]} Be7 {[%emt 0:00:10]} 8. Bg5 {[%emt 0:05:16]} Nbd7 {[%emt 0:02:43]} 9. a4 {[%emt 0:01:08]} h6 {[%emt 0:02:08]} 10. Be3 {[%emt 0:00:14]} Ng4 {[%emt 0:02:45]} 11. Bc1 {[%emt 0:00:09]} Ngf6 {[%emt 0:00:06]} 12. O-O {[%emt 0:02:07]} O-O {[%emt 0:00:11]} 13. Nd2 {[%emt 0:06:25]} Qc7 {[%emt 0:10:58]} 14. Re1 {[%emt 0:01:19]} Nc5 {[%emt 0:03:21]} 15. Bf3 {[%emt 0:08:52]} Ne6 {[%emt 0:04:23]} 16. Nf1 {[%emt 0:06:18]} Nd4 {[%emt 0:01:28]} 17. Be3 {[%emt 0:00:20]} Nxf3+ {[%emt 0:00:35]} 18. Qxf3 {[%emt 0:00:02]} Be6 {[%emt 0:01:23]} 19. a5 {[%emt 0:01:48]} Qc6 {[%emt 0:00:35]} 20. h3 {[%emt 0:01:52]} d5 {[%emt 0:05:29]} 21. exd5 {[%emt 0:01:12]} Nxd5 {[%emt 0:00:06]} 22. Bd2 {[%emt 0:16:06]} Nb4 {[%emt 0:02:57]} 23. Qxc6 {[%emt 0:04:07]} bxc6 {[%emt 0:02:50]} 24. Rac1 {[%emt 0:05:48]} Bd6 {[%emt 0:05:07]} 25. Ne4 {[%emt 0:01:07]} Be7 {[%emt 0:00:04]} 26. Be3 {[%emt 0:06:05]} Bf5 {[%emt 0:07:23]} 27. Bc5 {[%emt 0:01:31]} Bxc5 {[%emt 0:07:02]} 28. Nxc5 {[%emt 0:00:02]} Bxc2 {[%emt 0:00:31]} 29. Rxe5 {[%emt 0:01:15]} Rfb8 {[%emt 0:00:35]} 30. Ne3 {[%emt 0:02:17]} Bg6 {[%emt 0:00:30]} 31. Nc4 {[%emt 0:10:05]} Rb5 {[%emt 0:10:25]} 32. Nb6 {[%emt 0:00:14]} Rd8 {[%emt 0:00:10]} 33. Ncd7 {[%emt 0:00:12]} f6 {[%emt 0:10:53]} 34. Rxb5 {[%emt 0:01:26]} cxb5 {[%emt 0:01:18]} 35. Rc7 Bf5 {[%emt 0:02:52]} 36. g4 {[%emt 0:07:08]} Bxd7 {[%emt 0:08:30]} 37. Nxd7 {[%emt 0:00:17]} Nd3 {[%emt 0:00:59]} 38. b3 {[%emt 0:02:08]} Re8 {[%emt 0:00:12]} 1/2-1/2